[Event "CZE-ch Youth B12 2022"]
[Site "Luhacovice"]
[Date "2022.03.16"]
[Round "6.8"]
[White "Jansky, Adam"]
[Black "Sotek, Simon"]
[Result "0-1"]
[ECO "C54"]
[WhiteElo "1233"]
[BlackElo "1280"]
[Annotator "NA"]
[PlyCount "90"]
[EventDate "2022.03.12"]
[EventType "swiss"]
[EventCountry "CZE"]
[SourceTitle "playchess.com"]
[Source "ChessBase"]
[SourceQuality "1"]
[TimeControl "5400+30"]

1. e4 {[%emt 0:00:01]} e5 {[%emt 0:00:05]} 2. Nf3 {[%emt 0:00:08]} Nc6 {[%emt 0:00:07]} 3. Bc4 {[%emt 0:00:03]} Bc5 {[%emt 0:00:16]} 4. c3 {[%emt 0:00:29]} Nf6 {[%emt 0:00:15]} 5. d4 {[%emt 0:00:19]} exd4 {[%emt 0:00:46]} 6. cxd4 {[%emt 0:00:07]} Bb4+ {[%emt 0:00:23]} 7. Nbd2 {[%emt 0:00:08]} Nxe4 {[%emt 0:08:28]} 8. O-O {[%emt 0:00:52]} Nxd2 {[%emt 0:01:27]} 9. Bxd2 {[%emt 0:00:35]} Bxd2 {[%emt 0:00:18]} 10. Qxd2 {[%emt 0:00:24]} d5 {[%emt 0:00:16]} 11. Bb5 {[%emt 0:00:42]} O-O {[%emt 0:00:32]} 12. Rae1 {[%emt 0:00:39]} Bd7 {[%emt 0:07:58]} 13. Re3 {[%emt 0:06:22]} Qf6 {[%emt 0:04:13]} 14. Ne5 {[%emt 0:10:28]} Nxe5 {[%emt 0:03:52]} 15. dxe5 {[%emt 0:00:05]} Qe6 {[%emt 0:00:12]} 16. Bxd7 {[%emt 0:00:40]} Qxd7 {[%emt 0:00:07]} 17. Rg3 {[%emt 0:00:26]} f6 {[%emt 0:13:46]} 18. Re1 {[%emt 0:04:26]} Rae8 {[%emt 0:01:53]} 19. Rge3 {[%emt 0:01:29]} fxe5 {[%emt 0:02:04]} 20. Rxe5 {[%emt 0:00:10]} Rxe5 {[%emt 0:02:02]} 21. Rxe5 {[%emt 0:00:04]} c6 {[%emt 0:00:57]} 22. Qb4 {[%emt 0:04:15]} Re8 {[%emt 0:02:17]} 23. Rxe8+ {[%emt 0:00:46]} Qxe8 {[%emt 0:00:35]} 24. h3 {[%emt 0:00:13]} Qd7 {[%emt 0:00:43]} 25. Qd4 {[%emt 0:01:43]} b6 {[%emt 0:01:09]} 26. Qf4 {[%emt 0:00:57]} h6 {[%emt 0:01:15]} 27. Kf1 {[%emt 0:01:17]} c5 {[%emt 0:01:21]} 28. Ke2 {[%emt 0:00:14]} Qe7+ {[%emt 0:00:45]} 29. Kd3 {[%emt 0:00:55]} c4+ {[%emt 0:06:05]} 30. Kc3 {[%emt 0:03:56]} Qe1+ {[%emt 0:11:37]} 31. Qd2 {[%emt 0:12:36]} d4+ {[%emt 0:00:59]} 32. Kc2 {[%emt 0:00:10]} d3+ {[%emt 0:00:41]} 33. Kc3 {[%emt 0:00:11]} Qxd2+ {[%emt 0:00:07]} 34. Kxd2 {[%emt 0:00:06]} b5 {[%emt 0:00:12]} 35. Kd1 {[%emt 0:01:54]} Kf7 {[%emt 0:00:11]} 36. Kd2 {[%emt 0:00:46]} Ke6 {[%emt 0:00:20]} 37. Kd1 {[%emt 0:00:26]} g5 {[%emt 0:00:10]} 38. g3 {[%emt 0:00:44]} Ke5 {[%emt 0:00:03]} 39. f3 {[%emt 0:00:46]} h5 {[%emt 0:00:37]} 40. Kd2 {[%emt 0:00:15]} h4 {[%emt 0:00:20]} 41. gxh4 {[%emt 0:02:19]} gxh4 {[%emt 0:00:09]} 42. Ke3 {[%emt 0:00:08]} Kf5 {[%emt 0:00:26]} 43. f4 {[%emt 0:00:19]} d2 {[%emt 0:00:19]} 44. Kxd2 {[%emt 0:00:04]} Kxf4 {[%emt 0:00:07]} 45. Ke2 {[%emt 0:00:17]} a5 {[%emt 0:01:04]} 0-1

[Event "CZE-ch Youth B12 2022"]
[Site "Luhacovice"]
[Date "2022.03.16"]
[Round "6.9"]
[White "Pasek, Josef"]
[Black "Mydlar, Matej"]
[Result "0-1"]
[ECO "A46"]
[WhiteElo "1351"]
[BlackElo "1554"]
[Annotator "NA"]
[PlyCount "79"]
[EventDate "2022.03.12"]
[EventType "swiss"]
[EventCountry "CZE"]
[SourceTitle "playchess.com"]
[Source "ChessBase"]
[SourceQuality "1"]
[TimeControl "5400+30"]

1. d4 {[%emt 0:00:05]} Nf6 {[%emt 0:00:15]} 2. Nf3 {[%emt 0:00:14]} e6 {[%emt 0:00:15]} 3. g3 {[%emt 0:00:16]} b6 {[%emt 0:04:07]} 4. Bg2 {[%emt 0:05:05]} Bb7 {[%emt 0:04:04]} 5. O-O {[%emt 0:03:49]} c5 {[%emt 0:09:23]} 6. c4 {[%emt 0:14:44]} d5 {[%emt 0:04:42]} 7. Ne5 {[%emt 0:12:58]} cxd4 {[%emt 0:09:35]} 8. Qxd4 {[%emt 0:00:51]} Bc5 {[%emt 0:01:22]} 9. Qd1 {[%emt 0:00:18]} O-O {[%emt 0:04:44]} 10. Nc3 {[%emt 0:03:33]} Nbd7 {[%emt 0:07:28]} 11. Nxd7 {[%emt 0:00:36]} Qxd7 {[%emt 0:00:25]} 12. cxd5 {[%emt 0:01:32]} Nxd5 {[%emt 0:04:05]} 13. Nxd5 {[%emt 0:06:22]} exd5 {[%emt 0:01:32]} 14. e3 {[%emt 0:06:50]} Rad8 {[%emt 0:03:56]} 15. a3 {[%emt 0:04:09]} a5 {[%emt 0:00:57]} 16. Qb3 {[%emt 0:15:57]} Ba6 {[%emt 0:01:17]} 17. Rd1 {[%emt 0:00:23]} Bc4 {[%emt 0:00:19]} 18. Qc3 {[%emt 0:01:48]} a4 {[%emt 0:00:43]} 19. e4 {[%emt 0:01:57]} Bb3 {[%emt 0:02:14]} 20. Rd3 {[%emt 0:05:26]} d4 {[%emt 0:00:25]} 21. Qe1 {[%emt 0:00:31]} Qb5 {[%emt 0:00:19]} 22. Bf1 {[%emt 0:00:42]} Bc4 {[%emt 0:00:33]} 23. Rd1 {[%emt 0:00:48]} d3 {[%emt 0:00:15]} 24. Be3 {[%emt 0:01:00]} f5 {[%emt 0:07:29]} 25. e5 Rfe8 {[%emt 0:06:06]} 26. f4 {[%emt 0:03:46]} Rd4 {[%emt 0:04:33]} 27. Bg2 {[%emt 0:02:25]} Re4 {[%emt 0:02:32]} 28. Bxe4 {[%emt 0:00:27]} fxe4 {[%emt 0:00:07]} 29. Rd2 {[%emt 0:01:15]} Bxe3+ {[%emt 0:01:59]} 30. Qxe3 {[%emt 0:00:06]} Qc5 {[%emt 0:00:18]} 31. Kf2 {[%emt 0:00:22]} Qc6 {[%emt 0:01:45]} 32. Rc1 {[%emt 0:01:10]} b5 {[%emt 0:00:23]} 33. Rc3 {[%emt 0:01:52]} Qd5 {[%emt 0:01:01]} 34. Ke1 {[%emt 0:01:27]} h6 {[%emt 0:00:59]} 35. Kf2 {[%emt 0:00:32]} Rf8 {[%emt 0:00:19]} 36. Qb6 {[%emt 0:01:14]} Qxe5 {[%emt 0:00:41]} 37. Ke3 {[%emt 0:01:20]} Qh5 {[%emt 0:01:19]} 38. Rf2 {[%emt 0:00:33]} Qd1 {[%emt 0:01:00]} 39. Kxe4 {[%emt 0:01:53]} Qe1+ {[%emt 0:00:55]} 40. Kd4 0-1

[Event "CZE-ch Youth B12 2022"]
[Site "Luhacovice"]
[Date "2022.03.16"]
[Round "6.10"]
[White "Ruzicka, Oto"]
[Black "Kozdon, Marek"]
[Result "0-1"]
[ECO "B42"]
[WhiteElo "1233"]
[BlackElo "1183"]
[Annotator "NA"]
[PlyCount "108"]
[EventDate "2022.03.12"]
[EventType "swiss"]
[EventCountry "CZE"]
[SourceTitle "playchess.com"]
[Source "ChessBase"]
[SourceQuality "1"]
[TimeControl "5400+30"]

1. e4 {[%emt 0:00:05]} c5 {[%emt 0:01:25]} 2. Nf3 {[%emt 0:00:27]} e6 {[%emt 0:01:26]} 3. d4 {[%emt 0:00:44]} cxd4 {[%emt 0:02:40]} 4. Nxd4 {[%emt 0:00:18]} a6 {[%emt 0:01:54]} 5. Bd3 {[%emt 0:01:20]} Qc7 {[%emt 0:01:37]} 6. O-O {[%emt 0:02:02]} d6 {[%emt 0:01:10]} 7. c4 {[%emt 0:00:50]} b6 {[%emt 0:02:31]} 8. Nc3 {[%emt 0:01:29]} Bb7 {[%emt 0:01:42]} 9. Qe2 {[%emt 0:02:08]} Nd7 {[%emt 0:02:11]} 10. f4 {[%emt 0:02:33]} Rc8 {[%emt 0:01:46]} 11. b3 {[%emt 0:00:55]} Be7 {[%emt 0:02:18]} 12. Bb2 {[%emt 0:04:27]} Ngf6 {[%emt 0:10:20]} 13. Rfd1 {[%emt 0:06:43]} O-O {[%emt 0:02:00]} 14. Nf3 {[%emt 0:06:57]} Rfe8 {[%emt 0:01:43]} 15. Rd2 {[%emt 0:01:45]} Qb8 {[%emt 0:01:37]} 16. Rad1 {[%emt 0:01:49]} Bd8 {[%emt 0:00:55]} 17. Bc2 {[%emt 0:02:30]} Bc7 {[%emt 0:00:27]} 18. h3 {[%emt 0:01:04]} Nc5 {[%emt 0:07:49]} 19. Kh1 {[%emt 0:07:55]} Qa8 {[%emt 0:01:36]} 20. Re1 {[%emt 0:01:13]} Nh5 {[%emt 0:00:45]} 21. Qe3 {[%emt 0:02:37]} d5 {[%emt 0:02:14]} 22. e5 {[%emt 0:06:32]} f6 {[%emt 0:03:25]} 23. Kg1 {[%emt 0:02:52]} fxe5 {[%emt 0:02:22]} 24. fxe5 {[%emt 0:01:02]} g6 {[%emt 0:04:24]} 25. Rf2 {[%emt 0:06:44]} dxc4 {[%emt 0:07:33]} 26. bxc4 {[%emt 0:01:07]} Rf8 {[%emt 0:01:07]} 27. Kh2 {[%emt 0:07:10]} Bxf3 {[%emt 0:03:40]} 28. Rxf3 {[%emt 0:00:48]} Rxf3 {[%emt 0:00:17]} 29. Qxf3 {[%emt 0:00:30]} Qxf3 {[%emt 0:00:19]} 30. gxf3 {[%emt 0:00:12]} Rf8 {[%emt 0:00:35]} 31. Bd1 {[%emt 0:02:01]} Nd3 {[%emt 0:00:34]} 32. Re2 {[%emt 0:02:43]} Nxb2 {[%emt 0:00:20]} 33. Rxb2 {[%emt 0:00:21]} Bxe5+ {[%emt 0:00:11]} 34. Kg1 {[%emt 0:01:41]} Bxc3 {[%emt 0:00:26]} 35. Rb3 {[%emt 0:01:52]} Bd4+ {[%emt 0:00:27]} 36. Kg2 {[%emt 0:00:57]} Rc8 {[%emt 0:02:31]} 37. Rb4 {[%emt 0:02:12]} Nf4+ {[%emt 0:00:52]} 38. Kg3 {[%emt 0:02:17]} Nd3 {[%emt 0:00:51]} 39. Rb3 {[%emt 0:01:00]} Nc5 {[%emt 0:01:13]} 40. Rb4 {[%emt 0:01:35]} Rd8 {[%emt 0:00:49]} 41. Bc2 {[%emt 0:01:40]} Kf7 {[%emt 0:01:13]} 42. h4 {[%emt 0:02:12]} h6 {[%emt 0:01:08]} 43. Kh3 {[%emt 0:00:25]} Rd6 {[%emt 0:02:39]} 44. Rb1 {[%emt 0:00:46]} Bc3 {[%emt 0:01:03]} 45. Rg1 {[%emt 0:01:15]} e5 {[%emt 0:00:54]} 46. Bb1 {[%emt 0:02:02]} Nd3 {[%emt 0:01:12]} 47. Kh2 {[%emt 0:00:46]} Nf4 {[%emt 0:00:31]} 48. Be4 {[%emt 0:03:02]} Rd2+ {[%emt 0:00:37]} 49. Kh1 {[%emt 0:00:22]} Rxa2 {[%emt 0:01:17]} 50. Rd1 {[%emt 0:01:39]} Ra1 {[%emt 0:00:53]} 51. Bb1 {[%emt 0:02:20]} Bd4 {[%emt 0:00:43]} 52. Kh2 {[%emt 0:01:58]} Ne2 {[%emt 0:01:24]} 53. Re1 {[%emt 0:01:08]} Kf6 {[%emt 0:00:58]} 54. Kh1 {[%emt 0:01:31]} Nc3 {[%emt 0:01:04]} 0-1

[Event "CZE-ch Youth B12 2022"]
[Site "Luhacovice"]
[Date "2022.03.16"]
[Round "6.11"]
[White "Topencik, Bruno"]
[Black "Tejnor, Martin"]
[Result "1-0"]
[ECO "E61"]
[WhiteElo "1339"]
[BlackElo "1367"]
[Annotator "NA"]
[PlyCount "121"]
[EventDate "2022.03.12"]
[EventType "swiss"]
[EventCountry "CZE"]
[SourceTitle "playchess.com"]
[Source "ChessBase"]
[SourceQuality "1"]
[TimeControl "5400+30"]

1. d4 {[%emt 0:00:03]} Nf6 {[%emt 0:00:03]} 2. c4 {[%emt 0:00:13]} g6 {[%emt 0:00:03]} 3. Nc3 {[%emt 0:00:20]} Bg7 {[%emt 0:00:07]} 4. Nf3 {[%emt 0:01:02]} d6 {[%emt 0:00:07]} 5. Bg5 {[%emt 0:01:53]} O-O {[%emt 0:00:08]} 6. Qd2 {[%emt 0:01:23]} Re8 {[%emt 0:00:07]} 7. e3 {[%emt 0:04:36]} Nbd7 {[%emt 0:01:55]} 8. Be2 {[%emt 0:03:22]} e5 {[%emt 0:05:11]} 9. O-O {[%emt 0:04:51]} h6 {[%emt 0:06:37]} 10. Bxf6 {[%emt 0:03:41]} Bxf6 {[%emt 0:00:12]} 11. dxe5 {[%emt 0:02:16]} Nxe5 {[%emt 0:00:13]} 12. Nd5 {[%emt 0:03:19]} Bg7 {[%emt 0:00:40]} 13. Nxe5 {[%emt 0:02:54]} Rxe5 {[%emt 0:00:47]} 14. Rfe1 {[%emt 0:02:16]} Bf5 {[%emt 0:06:43]} 15. Bd3 {[%emt 0:02:33]} Bd7 {[%emt 0:00:54]} 16. Nc3 {[%emt 0:01:54]} Bc6 17. Bf1 {[%emt 0:02:35]} Qd7 {[%emt 0:02:00]} 18. Ne2 {[%emt 0:02:31]} Rae8 {[%emt 0:01:31]} 19. Nd4 {[%emt 0:02:20]} Be4 {[%emt 0:03:54]} 20. Bd3 {[%emt 0:02:35]} Bxd3 {[%emt 0:00:31]} 21. Qxd3 {[%emt 0:00:06]} Rh5 {[%emt 0:04:00]} 22. Qf1 {[%emt 0:05:53]} Re4 {[%emt 0:07:16]} 23. Rad1 {[%emt 0:03:03]} Rg4 {[%emt 0:11:40]} 24. f3 {[%emt 0:03:43]} Rgg5 {[%emt 0:00:58]} 25. f4 {[%emt 0:01:09]} Ra5 {[%emt 0:04:01]} 26. a3 {[%emt 0:03:12]} Qg4 {[%emt 0:05:58]} 27. Qf3 {[%emt 0:02:49]} Qxf3 {[%emt 0:08:46]} 28. gxf3 {[%emt 0:02:40]} Rac5 {[%emt 0:00:30]} 29. Rc1 {[%emt 0:04:37]} Rh3 {[%emt 0:03:53]} 30. Rf1 {[%emt 0:07:24]} a6 {[%emt 0:01:51]} 31. Nb3 {[%emt 0:03:26]} Rf5 {[%emt 0:03:01]} 32. Rf2 {[%emt 0:03:53]} Rhh5 {[%emt 0:01:32]} 33. Rd1 {[%emt 0:03:18]} Kf8 {[%emt 0:03:03]} 34. Kg2 {[%emt 0:02:55]} Rf6 {[%emt 0:00:55]} 35. Nd4 {[%emt 0:01:53]} c5 {[%emt 0:01:45]} 36. Ne2 {[%emt 0:02:14]} Ke7 {[%emt 0:01:23]} 37. Nc3 {[%emt 0:00:57]} Re6 {[%emt 0:00:51]} 38. Nd5+ {[%emt 0:01:02]} Kd8 {[%emt 0:00:21]} 39. Rfd2 {[%emt 0:03:26]} Bf8 {[%emt 0:00:34]} 40. Kg3 {[%emt 0:02:16]} f5 {[%emt 0:00:18]} 41. h4 {[%emt 0:01:18]} Be7 {[%emt 0:00:54]} 42. Nxe7 {[%emt 0:00:51]} Kxe7 {[%emt 0:00:10]} 43. Re1 {[%emt 0:00:51]} Kd7 {[%emt 0:02:29]} 44. e4 {[%emt 0:00:33]} fxe4 {[%emt 0:00:35]} 45. fxe4 {[%emt 0:00:50]} Kc6 {[%emt 0:01:00]} 46. Rd5 {[%emt 0:00:49]} Kd7 {[%emt 0:01:11]} 47. Rxh5 {[%emt 0:00:45]} gxh5 {[%emt 0:00:02]} 48. f5 {[%emt 0:00:12]} Rf6 {[%emt 0:00:41]} 49. Kf4 {[%emt 0:00:15]} Ke7 {[%emt 0:01:15]} 50. Rg1 {[%emt 0:00:44]} Kf7 {[%emt 0:00:21]} 51. a4 {[%emt 0:00:33]} a5 {[%emt 0:00:39]} 52. Rg3 {[%emt 0:00:52]} Kf8 {[%emt 0:01:43]} 53. b3 {[%emt 0:00:31]} Kf7 {[%emt 0:00:57]} 54. Rg2 {[%emt 0:00:07]} b6 {[%emt 0:00:09]} 55. Rd2 {[%emt 0:00:27]} Ke7 {[%emt 0:01:05]} 56. Rg2 {[%emt 0:00:10]} Kf7 {[%emt 0:00:05]} 57. e5 {[%emt 0:00:14]} dxe5+ {[%emt 0:00:25]} 58. Kxe5 {[%emt 0:00:07]} Rc6 {[%emt 0:00:28]} 59. Rd2 {[%emt 0:00:27]} Ke7 {[%emt 0:00:51]} 60. Rd3 {[%emt 0:00:47]} Rf6 {[%emt 0:01:53]} 61. Rd7+ {[%emt 0:00:33]} 1-0

[Event "CZE-ch Youth B12 2022"]
[Site "Luhacovice"]
[Date "2022.03.16"]
[Round "6.12"]
[White "Knapek, Jan"]
[Black "Letal, Hynek"]
[Result "0-1"]
[ECO "B78"]
[WhiteElo "1340"]
[BlackElo "1371"]
[Annotator "NA"]
[PlyCount "58"]
[EventDate "2022.03.12"]
[EventType "swiss"]
[EventCountry "CZE"]
[SourceTitle "playchess.com"]
[Source "ChessBase"]
[SourceQuality "1"]
[TimeControl "5400+30"]

1. e4 c5 2. Nf3 {[%emt 0:01:08]} d6 {[%emt 0:00:47]} 3. d4 {[%emt 0:00:06]} cxd4 {[%emt 0:00:05]} 4. Nxd4 {[%emt 0:00:07]} Nf6 {[%emt 0:00:07]} 5. Nc3 {[%emt 0:00:09]} g6 {[%emt 0:00:14]} 6. Be3 {[%emt 0:00:31]} Bg7 {[%emt 0:00:10]} 7. f3 {[%emt 0:00:12]} Nc6 {[%emt 0:00:18]} 8. Bc4 {[%emt 0:00:28]} O-O {[%emt 0:00:17]} 9. Qd2 {[%emt 0:00:16]} Bd7 {[%emt 0:00:38]} 10. O-O-O {[%emt 0:00:45]} Rb8 {[%emt 0:00:34]} 11. h4 {[%emt 0:00:48]} Ne5 {[%emt 0:01:05]} 12. Bb3 {[%emt 0:01:04]} b5 {[%emt 0:01:11]} 13. h5 {[%emt 0:01:17]} Nc4 {[%emt 0:00:42]} 14. Bxc4 {[%emt 0:01:30]} bxc4 {[%emt 0:00:11]} 15. hxg6 {[%emt 0:00:32]} fxg6 {[%emt 0:00:10]} 16. f4 {[%emt 0:01:33]} Qb6 {[%emt 0:03:34]} 17. Nb3 {[%emt 0:01:02]} Qb7 {[%emt 0:03:39]} 18. e5 {[%emt 0:02:37]} cxb3 {[%emt 0:02:21]} 19. cxb3 {[%emt 0:00:16]} Ne4 {[%emt 0:01:25]} 20. Nxe4 {[%emt 0:01:45]} Qxe4 {[%emt 0:00:21]} 21. Rde1 {[%emt 0:01:47]} Rfc8+ {[%emt 0:00:18]} 22. Kd1 {[%emt 0:01:06]} Bg4+ {[%emt 0:00:13]} 23. Re2 {[%emt 0:00:31]} Qb1+ {[%emt 0:00:12]} 24. Qc1 {[%emt 0:01:12]} Rxc1+ {[%emt 0:00:06]} 25. Bxc1 {[%emt 0:00:47]} Qd3+ {[%emt 0:00:08]} 26. Bd2 {[%emt 0:00:29]} Qxe2+ {[%emt 0:00:09]} 27. Kc1 {[%emt 0:00:35]} Rc8+ {[%emt 0:00:13]} 28. Bc3 {[%emt 0:00:26]} Bf5 {[%emt 0:00:11]} 29. Rd1 {[%emt 0:05:08]} Qc2# {[%emt 0:00:12]} 0-1

[Event "CZE-ch Youth B12 2022"]
[Site "Luhacovice"]
[Date "2022.03.17"]
[Round "7.1"]
[White "Delgerdalai, Bayarjavkhlan"]
[Black "Popov, Roman"]
[Result "1-0"]
[ECO "D17"]
[WhiteElo "2074"]
[BlackElo "2353"]
[Annotator "ChessBase"]
[PlyCount "73"]
[EventDate "2022.03.12"]
[EventType "swiss"]
[EventCountry "CZE"]
[SourceTitle "playchess.com"]
[Source "ChessBase"]
[SourceQuality "1"]
[TimeControl "5400+30"]

1. d4 d5 2. c4 c6 3. Nc3 Nf6 4. Nf3 dxc4 5. a4 Bf5 6. Nh4 Bg6 7. Nxg6 hxg6 8. e4 e6 9. Bxc4 Bb4 10. Qd3 c5 11. d5 exd5 12. exd5 Qd6 13. g3 Nbd7 14. Bf4 Qe7+ 15. Kf1 O-O 16. d6 Qd8 17. Qxg6 Bxc3 18. bxc3 Nb6 19. Qd3 Nxc4 20. Qxc4 Qd7 21. Kg2 Qc6+ 22. f3 Nd5 23. Rhe1 Rfe8 24. Rad1 Rxe1 25. Rxe1 Rd8 26. Rd1 Rxd6 27. Re1 Nxf4+ 28. Qxf4 Qd7 29. Re2 b6 30. h4 Rd3 31. h5 Rd6 32. g4 Re6 33. Rd2 Qe7 34. Qb8+ Kh7 35. Rd8 Kh6 36. Kg3 g6 37. Rh8+ 1-0

[Event "CZE-ch Youth B12 2022"]
[Site "Luhacovice"]
[Date "2022.03.17"]
[Round "7.2"]
[White "Mikulka, Martin Michael"]
[Black "Vana, Jan"]
[Result "1-0"]
[ECO "B32"]
[WhiteElo "1406"]
[BlackElo "1609"]
[Annotator "NA"]
[PlyCount "55"]
[EventDate "2022.03.12"]
[EventType "swiss"]
[EventCountry "CZE"]
[SourceTitle "playchess.com"]
[Source "ChessBase"]
[SourceQuality "1"]
[TimeControl "5400+30"]

1. e4 {[%emt 0:00:03]} c5 {[%emt 0:00:10]} 2. Nf3 {[%emt 0:00:08]} Nc6 {[%emt 0:00:06]} 3. d4 {[%emt 0:00:04]} cxd4 {[%emt 0:00:06]} 4. Nxd4 {[%emt 0:00:07]} e5 {[%emt 0:00:05]} 5. Nb5 {[%emt 0:00:08]} d6 {[%emt 0:00:06]} 6. N1c3 {[%emt 0:00:12]} a6 {[%emt 0:00:08]} 7. Na3 {[%emt 0:00:12]} b5 {[%emt 0:00:12]} 8. Nd5 {[%emt 0:00:18]} Nge7 {[%emt 0:00:43]} 9. c4 {[%emt 0:05:15]} Nxd5 {[%emt 0:01:30]} 10. exd5 {[%emt 0:03:20]} Nd4 {[%emt 0:02:29]} 11. cxb5 {[%emt 0:00:50]} Be7 {[%emt 0:04:23]} 12. Bd3 {[%emt 0:03:57]} O-O {[%emt 0:02:43]} 13. O-O {[%emt 0:00:08]} f5 {[%emt 0:01:17]} 14. Be3 {[%emt 0:03:49]} Bf6 {[%emt 0:05:58]} 15. Bxd4 {[%emt 0:02:34]} exd4 {[%emt 0:00:02]} 16. bxa6 {[%emt 0:01:21]} f4 {[%emt 0:03:46]} 17. f3 {[%emt 0:03:01]} Bh4 {[%emt 0:08:20]} 18. Qc2 {[%emt 0:06:08]} Rf6 {[%emt 0:11:32]} 19. Rac1 {[%emt 0:05:24]} Rh6 {[%emt 0:06:46]} 20. Qc7 {[%emt 0:06:12]} Qe8 {[%emt 0:08:10]} 21. Bb5 {[%emt 0:05:14]} Qe3+ {[%emt 0:03:43]} 22. Kh1 {[%emt 0:00:05]} Bf5 {[%emt 0:03:08]} 23. Nc4 {[%emt 0:06:07]} Qe2 {[%emt 0:10:43]} 24. Nxd6 {[%emt 0:00:48]} Qxb2 {[%emt 0:18:46]} 25. Nxf5 {[%emt 0:01:09]} Rg6 {[%emt 0:01:00]} 26. Nxh4 {[%emt 0:00:53]} Rg5 {[%emt 0:01:27]} 27. Qxf4 {[%emt 0:01:27]} h6 {[%emt 0:00:20]} 28. a4 {[%emt 0:03:32]} 1-0

[Event "CZE-ch Youth B12 2022"]
[Site "Luhacovice"]
[Date "2022.03.17"]
[Round "7.3"]
[White "Stary, Vojtech"]
[Black "Roubal, Matyas"]
[Result "1/2-1/2"]
[ECO "D00"]
[WhiteElo "1640"]
[BlackElo "1870"]
[Annotator "NA"]
[PlyCount "85"]
[EventDate "2022.03.12"]
[EventType "swiss"]
[EventCountry "CZE"]
[SourceTitle "playchess.com"]
[Source "ChessBase"]
[SourceQuality "1"]
[TimeControl "5400+30"]

1. d4 {[%emt 0:00:03]} d5 {[%emt 0:00:32]} 2. Bf4 {[%emt 0:00:12]} e6 {[%emt 0:00:53]} 3. e3 {[%emt 0:00:08]} c5 {[%emt 0:00:31]} 4. c3 {[%emt 0:00:18]} Bd6 {[%emt 0:00:35]} 5. Bg3 {[%emt 0:00:25]} Nf6 {[%emt 0:01:34]} 6. Nd2 {[%emt 0:00:21]} O-O {[%emt 0:00:41]} 7. Ngf3 {[%emt 0:00:19]} Nc6 {[%emt 0:00:55]} 8. Bd3 {[%emt 0:00:26]} b6 {[%emt 0:01:35]} 9. e4 {[%emt 0:02:23]} dxe4 {[%emt 0:01:33]} 10. Nxe4 {[%emt 0:00:22]} Nxe4 {[%emt 0:04:10]} 11. Bxe4 {[%emt 0:00:22]} Bb7 {[%emt 0:00:27]} 12. dxc5 {[%emt 0:04:32]} Bxc5 {[%emt 0:02:06]} 13. Qa4 {[%emt 0:01:27]} Rc8 {[%emt 0:07:58]} 14. Rd1 {[%emt 0:02:46]} Qe7 {[%emt 0:00:58]} 15. O-O {[%emt 0:02:58]} a6 {[%emt 0:12:27]} 16. b4 {[%emt 0:04:55]} b5 {[%emt 0:01:07]} 17. Qa3 {[%emt 0:01:36]} f5 $16 {[%emt 0:12:18]} 18. Bxc6 {[%emt 0:09:25]} Bxc6 {[%emt 0:01:49]} 19. bxc5 {[%emt 0:09:36]} Bxf3 {[%emt 0:00:19]} 20. gxf3 {[%emt 0:00:42]} f4 {[%emt 0:00:04]} 21. Rd6 {[%emt 0:03:01]} fxg3 {[%emt 0:02:12]} 22. fxg3 Rf5 {[%emt 0:07:34]} 23. Qb3 {[%emt 0:04:39]} Rfxc5 {[%emt 0:06:23]} 24. Qxe6+ {[%emt 0:00:27]} Qxe6 {[%emt 0:00:03]} 25. Rxe6 {[%emt 0:00:08]} R8c6 {[%emt 0:04:29]} 26. Rxc6 {[%emt 0:02:59]} Rxc6 27. Rc1 {[%emt 0:00:19]} Rc4 {[%emt 0:00:27]} 28. Kf2 {[%emt 0:01:55]} b4 {[%emt 0:00:46]} 29. Ke3 {[%emt 0:03:31]} bxc3 {[%emt 0:01:30]} 30. Kd3 {[%emt 0:14:25]} Ra4 {[%emt 0:00:10]} 31. Rc2 {[%emt 0:01:17]} Ra3 {[%emt 0:00:44]} 32. Kc4 {[%emt 0:02:18]} a5 {[%emt 0:01:32]} 33. f4 {[%emt 0:01:33]} Kf7 {[%emt 0:00:10]} 34. Rf2 {[%emt 0:04:30]} Kf6 {[%emt 0:00:50]} 35. g4 {[%emt 0:02:02]} g5 {[%emt 0:04:16]} 36. h3 {[%emt 0:12:05]} gxf4 {[%emt 0:01:27]} 37. Rxf4+ {[%emt 0:00:18]} Kg5 {[%emt 0:00:14]} 38. Rf5+ {[%emt 0:00:50]} Kg6 {[%emt 0:01:20]} 39. Kd3 {[%emt 0:01:28]} a4 {[%emt 0:02:42]} 40. Rh5 {[%emt 0:03:01]} h6 {[%emt 0:01:04]} 41. Kc2 {[%emt 0:00:44]} Kg7 {[%emt 0:00:55]} 42. Kd3 {[%emt 0:01:25]} Kg6 {[%emt 0:00:13]} 43. Ke4 1/2-1/2

[Event "CZE-ch Youth B12 2022"]
[Site "Luhacovice"]
[Date "2022.03.17"]
[Round "7.4"]
[White "Kutil, Adam"]
[Black "Martirosyan, David"]
[Result "1-0"]
[ECO "B52"]
[WhiteElo "1544"]
[BlackElo "1725"]
[Annotator "NA"]
[PlyCount "45"]
[EventDate "2022.03.12"]
[EventType "swiss"]
[EventCountry "CZE"]
[SourceTitle "playchess.com"]
[Source "ChessBase"]
[SourceQuality "1"]
[TimeControl "5400+30"]

1. e4 c5 {[%emt 0:00:04]} 2. Nf3 {[%emt 0:01:12]} d6 {[%emt 0:00:04]} 3. Bb5+ {[%emt 0:00:36]} Bd7 {[%emt 0:00:22]} 4. Bxd7+ {[%emt 0:00:51]} Qxd7 {[%emt 0:00:04]} 5. c4 {[%emt 0:02:06]} Nc6 {[%emt 0:00:49]} 6. O-O {[%emt 0:01:45]} g6 {[%emt 0:00:26]} 7. d4 {[%emt 0:01:20]} cxd4 {[%emt 0:00:08]} 8. Nxd4 {[%emt 0:00:12]} Bg7 {[%emt 0:00:06]} 9. Be3 {[%emt 0:00:56]} Nf6 {[%emt 0:00:06]} 10. f3 {[%emt 0:00:40]} O-O {[%emt 0:00:35]} 11. Nc3 {[%emt 0:01:19]} Rac8 {[%emt 0:01:17]} 12. b3 {[%emt 0:02:44]} a6 {[%emt 0:02:23]} 13. a4 {[%emt 0:02:06]} Qc7 {[%emt 0:02:28]} 14. Qd2 {[%emt 0:07:33]} Qa5 {[%emt 0:07:14]} 15. Nde2 {[%emt 0:02:29]} Nd7 {[%emt 0:03:25]} 16. Rab1 {[%emt 0:03:00]} Rfe8 {[%emt 0:08:10]} 17. Rfd1 {[%emt 0:04:58]} Nc5 {[%emt 0:11:09]} 18. Bh6 {[%emt 0:15:56]} Rcd8 {[%emt 0:17:09]} 19. Bxg7 {[%emt 0:05:11]} Kxg7 {[%emt 0:00:06]} 20. Qb2 {[%emt 0:08:38]} Ne6 {[%emt 0:13:24]} 21. Nd5+ {[%emt 0:09:10]} Ne5 {[%emt 0:03:03]} 22. f4 {[%emt 0:03:24]} Nxf4 {[%emt 0:01:32]} 23. Ndxf4 {[%emt 0:01:38]} 1-0